bitfinex/quotes_SOLUSD_20250718
["timestamp","ask_amount","ask_price","bid_price","bid_amount"]
[1752798232999,0.72,177.09,177.04,5.64838016]
[1752798233335,0.72,177.09,177.04,15.71825979]
[1752798234429,0.72,177.09,177.04,5.64838016]
[1752798234623,10.78987963,177.09,177.04,15.71825979]
[1752798234925,0.72,177.09,177.04,16.22825979]
[1752798235516,10.06987963,177.1,177.04,16.22825979]
[1752798236028,15.71652852,177.1,176.98,14.12566019]
[1752798236190,0.72,177.09,176.99,0.51]
[1752798236535,10.06987963,177.08,177.02,36.06987963]
[1752798236710,10.78987963,177.08,177.02,15.71877929]
[1752798236910,10.06987963,177.04,176.99,28.36]
[1752798237106,1.5334,177.07,176.97,0.54]
[1752798237300,10.78987963,177.03,176.97,16.26044708]
[1752798238320,0.72,177.03,176.98,10.06987963]
[1752798239025,10.06987963,177.04,177.01,0.03]
[1752798239519,10.74987963,177.04,177.01,0.03]
[1752798240019,0.68,177.04,177.01,0.03]
[1752798240204,0.68,177.03,177.01,0.03]
[1752798240412,10.74987963,177.03,177.01,0.03]
[1752798240618,0.68,177.03,177.01,0.03]
[1752798240797,10.74987963,177.02,177.01,0.03]
[1752798242010,0.68,177.06,177.01,10.09987963]
[1752798242339,10.74987963,177.05,177.01,0.03]
[1752798242631,10.06987963,177.04,177.01,0.03]
[1752798242834,0.68,177.04,177.01,0.03]
[1752798243005,10.06987963,177.02,177.01,0.03]
[1752798243910,1.5834,177.04,177.01,0.03]
[1752798244112,10.06987963,177.02,177.01,0.03]
[1752798246232,10.74987963,177.02,177.01,0.03]
[1752798246442,10.74987963,177.02,176.98,4.68035597]
[1752798246636,10.74987963,177.02,176.97,6.1905836]
[1752798246824,10.06987963,177.0,176.97,0.03]
[1752798247027,10.06987963,176.99,176.97,0.03]
[1752798247530,166.64378397,177.08,176.98,0.51]
[1752798247710,10.06987963,177.09,177.03,10.06987963]
[1752798247909,10.06987963,177.09,177.04,0.51]
[1752798248124,10.06987963,177.09,177.03,10.06987963]
[1752798248408,7.1955,177.11,177.04,10.57987963]
[1752798248409,10.06987963,177.1,177.04,10.57987963]
[1752798248630,10.06987963,177.11,177.05,10.06987963]
[1752798249126,10.12987963,177.12,177.07,5.64748404]
[1752798249320,10.74987963,177.11,177.07,5.64748404]
[1752798249531,10.06987963,177.1,177.07,5.64748404]
[1752798249729,10.74987963,177.09,177.02,5.6490792]
[1752798249929,0.06,177.12,177.02,5.6490792]
[1752798249930,10.06987963,177.05,177.02,5.6490792]
[1752798250421,10.74987963,177.04,176.98,29.52]
[1752798250729,29.52,177.09,176.99,6.16003672]
[1752798250730,10.06987963,177.05,176.99,6.16003672]
[1752798250934,10.06987963,177.04,176.99,6.16003672]
[1752798251939,10.06987963,177.05,176.99,6.16003672]
[1752798252122,10.06987963,177.05,177.0,0.51]
[1752798252317,10.06987963,177.05,177.01,0.51]
[1752798253140,35.8469412,177.09,177.03,5.64876009]
[1752798253438,10.06987963,177.06,177.03,5.64876009]
[1752798253612,10.06987963,177.04,177.01,5.64939833]
[1752798254316,10.06987963,177.03,176.99,5.65003672]
[1752798254613,10.74987963,177.03,176.99,5.65003672]
[1752798254814,10.06987963,177.04,176.99,5.65003672]
[1752798255031,10.74987963,177.04,176.99,5.65003672]
[1752798255414,5.6474519,177.08,176.99,5.65003672]
[1752798255415,10.06987963,177.05,176.99,16.22991635]
[1752798255734,10.06987963,177.04,176.99,6.16003672]
[1752798255912,10.06987963,177.05,177.0,0.51]
[1752798256315,0.68,177.05,177.0,5.64946078]
[1752798256608,10.74987963,177.04,177.0,5.64946078]
[1752798256811,10.74987963,177.04,176.97,0.03]
[1752798256812,10.06987963,177.01,176.97,0.03]
[1752798257922,10.74987963,177.0,176.97,0.03]
[1752798258121,10.06987963,176.99,176.97,0.03]
[1752798258332,10.74987963,176.99,176.97,0.03]
[1752798258734,10.06987963,176.99,176.97,0.03]
[1752798258940,10.74987963,176.98,176.97,0.03]
[1752798259531,0.68,176.98,176.97,0.03]
[1752798259936,0.68,177.02,176.97,0.03]
[1752798260123,10.74987963,177.02,176.97,0.03]
[1752798260437,10.06987963,177.01,176.97,0.03]
[1752798260641,10.06987963,177.0,176.97,0.03]
[1752798260843,10.74987963,177.0,176.97,0.03]
[1752798261037,6.94825631,177.0,176.97,0.03]
[1752798261742,6.26825631,176.98,176.97,0.03]
[1752798262250,6.94825631,176.98,176.97,0.03]
[1752798263030,10.71198656,176.98,176.97,0.03]
[1752798263518,0.68,176.98,176.97,0.03]
[1752798263718,10.71198656,176.98,176.97,0.03]
[1752798264143,0.06,177.04,176.97,65.97198656]
[1752798264326,10.09198656,177.04,176.98,10.03198656]
[1752798264533,0.68,177.03,176.98,10.03198656]
[1752798265243,10.03198656,177.0,176.97,29.43]
[1752798265435,8.3426,177.04,176.97,29.43]
[1752798265436,10.71198656,176.99,176.97,0.03]
[1752798265846,10.71198656,176.98,176.93,0.03]
[1752798266022,10.03198656,176.94,176.93,0.03]
[1752798266753,10.71198656,176.94,176.93,0.03]
[1752798267440,1.552,176.96,176.93,0.03]
[1752798267845,0.68,176.95,176.93,0.03]
[1752798268942,10.71198656,176.94,176.93,0.03]
[1752798270730,5.65003672,176.99,176.93,0.03]
[1752798270924,10.03198656,176.96,176.93,0.03]
[1752798271171,10.03198656,176.95,176.93,0.03]
[1752798271449,0.7,176.96,176.93,0.03]
[1752798271829,10.73198656,176.96,176.93,0.03]
[1752798272254,0.7,176.96,176.93,0.03]
[1752798272423,10.73198656,176.96,176.93,0.03]
[1752798272625,10.03198656,176.98,176.93,10.06198656]
[1752798272852,10.73198656,176.99,176.93,10.06198656]
[1752798273030,0.7,176.98,176.93,10.06198656]
[1752798273228,1.6634,177.0,176.95,10.03198656]
[1752798273434,10.03198656,177.01,176.95,10.03198656]
[1752798273727,0.7,177.0,176.95,10.03198656]
[1752798273934,0.7,176.99,176.95,10.03198656]
[1752798274159,148.3,177.03,176.93,5.6816599]
[1752798274160,10.73198656,176.98,176.93,5.6816599]
[1752798274335,10.73198656,176.97,176.93,0.03]
[1752798274543,10.73198656,176.97,176.93,5.68186735]
[1752798274839,0.7,176.96,176.93,5.68186735]
[1752798275037,0.7,176.96,176.93,0.03]
[1752798275038,0.7,176.95,176.93,0.03]
[1752798275557,0.7,176.94,176.93,0.03]
[1752798276227,10.73198656,176.94,176.93,0.03]
[1752798276433,16.38361988,176.94,176.93,0.03]
[1752798276634,16.38361988,176.94,176.89,0.03]
[1752798276843,10.03198656,176.91,176.89,0.03]
[1752798277245,0.7,176.9,176.89,0.03]
[1752798277772,10.73198656,176.92,176.89,0.03]
[1752798277947,0.7,176.91,176.89,0.03]
[1752798278143,5.65163332,176.94,176.89,0.03]
[1752798278372,0.7,176.95,176.89,10.63198656]
[1752798278565,10.73198656,176.95,176.89,10.63198656]
[1752798278880,0.7,176.98,176.93,10.03198656]
[1752798279088,0.7,176.97,176.93,10.03198656]
[1752798279246,0.7,176.97,176.92,10.03198656]
[1752798279446,0.7,176.96,176.93,10.03198656]
[1752798279871,0.7,176.96,176.92,10.03198656]
[1752798280444,0.7,176.98,176.92,10.03198656]
[1752798280652,10.73198656,176.98,176.92,10.03198656]
[1752798281685,16.38241774,176.98,176.92,15.68407657]
[1752798281976,0.7,176.98,176.93,10.03198656]
[1752798282368,0.7,176.97,176.93,10.03198656]
[1752798282566,10.03198656,176.98,176.92,15.68407657]
[1752798282779,0.7,176.96,176.92,15.68407657]
[1752798282961,10.73198656,176.96,176.92,5.65209001]
[1752798283170,0.7,176.95,176.92,15.68407657]
[1752798283870,5.65056285,176.98,176.92,15.68407657]
[1752798283871,10.73198656,176.97,176.92,15.68407657]
[1752798284179,0.7,176.96,176.92,5.65209001]
[1752798286362,0.7,176.95,176.92,5.65209001]
[1752798287284,10.03198656,176.96,176.92,5.65209001]
[1752798287587,0.7,176.96,176.92,15.68407657]
[1752798288093,0.7,176.96,176.92,5.65209001]
[1752798288592,10.03198656,176.93,176.89,0.03]
[1752798288800,10.03198656,176.9,176.89,0.03]
[1752798289080,0.7,176.9,176.89,0.03]
[1752798289392,10.73198656,176.9,176.89,0.03]
[1752798289594,0.7,176.9,176.89,0.03]
[1752798289757,10.73198656,176.9,176.89,0.03]
[1752798290789,16.3848978,176.9,176.89,0.03]
[1752798294479,0.7,176.9,176.89,0.03]
[1752798294672,10.73198656,176.9,176.89,0.03]
[1752798296987,0.7,176.9,176.89,0.03]
[1752798297178,10.73198656,176.9,176.89,0.03]
[1752798298663,10.73198656,176.9,176.85,0.03]
[1752798298982,10.03198656,176.89,176.85,0.03]
[1752798300286,10.03198656,176.88,176.85,0.03]
[1752798300479,10.03198656,176.86,176.85,0.03]
[1752798300992,10.03198656,176.86,176.83,0.2]
[1752798300993,6.94163418,176.86,176.83,0.2]
[1752798301204,6.28163418,176.86,176.83,0.2]
[1752798301358,177.64,176.88,176.83,0.2]
[1752798301682,6.28163418,176.84,176.83,0.2]
[1752798302087,6.94163418,176.84,176.83,0.2]
[1752798302266,12.5964634,176.84,176.83,0.2]
[1752798302665,0.66,176.84,176.83,0.2]
[1752798303074,30.02,176.86,176.83,0.2]
[1752798303264,10.04817481,176.84,176.83,0.2]
[1752798303574,0.66,176.85,176.83,0.2]
[1752798303776,0.66,176.88,176.83,16.53316182]
[1752798303980,10.04817481,176.89,176.84,10.67817481]
[1752798304186,10.70817481,176.89,176.83,15.90316182]
[1752798304764,10.04817481,176.9,176.84,10.67817481]
[1752798305292,10.04817481,176.9,176.84,10.04817481]
[1752798305788,10.04817481,176.9,176.84,15.70269794]
[1752798306092,0.06,176.89,176.87,10.04817481]
[1752798306461,0.06,176.89,176.88,10.04817481]
[1752798307093,0.06,176.89,176.88,10.67817481]
[1752798307900,0.06,176.89,176.88,16.33172523]
[1752798308074,0.06,176.89,176.88,45.67172523]
[1752798311303,0.66,176.98,176.88,59.8056013]
[1752798311508,0.66,176.98,176.93,10.04817481]
[1752798311679,11.68171422,177.0,176.94,10.04817481]
[1752798311680,6.0319,177.0,176.94,10.04817481]
[1752798311879,6.0319,177.0,176.96,10.04817481]
[1752798312181,0.66,177.01,176.97,10.04817481]
[1752798312377,10.70817481,177.0,176.96,29.34]
[1752798312605,0.66,176.99,176.96,29.34]
[1752798313000,0.66,176.99,176.96,39.38817481]
[1752798313179,10.70817481,177.01,176.97,5.65067525]
[1752798313379,0.66,177.0,176.97,5.65067525]
[1752798313784,10.70817481,177.02,176.97,5.65067525]
[1752798313991,0.66,177.01,176.97,5.65067525]
[1752798314187,0.66,177.01,176.97,15.69885006]
[1752798314805,0.66,177.0,176.97,5.65067525]
[1752798315007,0.06,177.04,176.96,29.34]
[1752798315008,10.70817481,176.99,176.96,29.34]
[1752798315185,10.04817481,177.0,176.96,29.34]
[1752798315386,0.66,176.99,176.96,29.34]
[1752798315807,0.66,177.02,176.97,10.04817481]
[1752798316605,0.06,177.04,177.0,10.04817481]
[1752798316908,0.06,177.04,176.99,10.04817481]
[1752798317081,10.10817481,177.04,176.99,10.04817481]
[1752798317277,10.76817481,177.04,176.99,10.04817481]
[1752798317596,10.76817481,177.04,176.99,15.69791828]
[1752798317790,10.76817481,177.04,176.98,0.63]
[1752798318105,0.06,177.05,177.03,26.83285878]
[1752798318281,0.06,177.05,177.04,66.05817481]
[1752798319405,0.06,177.05,177.04,71.68661584]
[1752798319791,0.06,177.05,177.04,32.35844103]
[1752798319994,0.06,177.05,177.04,60.92844103]
[1752798320196,0.06,177.05,177.04,29.28]
[1752798320513,0.72,177.05,177.01,29.3]
[1752798321425,0.06,177.05,177.02,15.697074]
[1752798321787,0.06,177.05,177.04,10.04817481]
[1752798321987,0.06,177.05,177.04,39.32817481]
[1752798322186,0.06,177.05,177.04,66.03817481]
[1752798322720,0.06,177.06,177.04,66.03817481]
[1752798323038,0.06,177.06,177.05,10.75817481]
[1752798323219,0.06,177.06,176.98,14.1257594]
[1752798323422,0.06,177.06,177.02,42.40711066]
[1752798323716,10.04817481,177.04,177.01,29.28]
[1752798323920,0.66,177.03,177.0,29.32]
[1752798324523,10.04817481,177.04,177.0,29.32]
[1752798324734,15.69663278,177.04,177.0,29.32]
[1752798325107,16.35663278,177.04,177.0,29.32]
[1752798325311,10.70817481,177.04,177.0,29.32]
[1752798325619,0.66,177.03,177.0,29.32]
[1752798325823,10.70817481,177.04,177.0,29.32]
[1752798326138,16.35671563,177.04,177.0,29.32]
[1752798326741,10.04817481,177.01,176.99,29.3]
[1752798326926,10.70817481,177.01,176.97,29.3]
[1752798327432,0.66,177.01,176.97,29.3]
[1752798329732,6.30940507,177.01,176.97,29.3]
[1752798329927,15.69757988,177.01,176.97,29.3]
[1752798330118,16.37757988,177.01,176.97,29.3]
[1752798330321,10.04817481,176.99,176.97,29.3]
[1752798330528,10.72817481,176.99,176.97,29.3]
[1752798330820,10.72817481,176.99,176.95,29.28]
[1752798331238,10.72817481,176.98,176.95,29.28]
[1752798331540,10.72817481,176.97,176.93,29.26]
[1752798331841,10.72817481,176.96,176.9,10.71817481]
[1752798332131,10.04817481,176.95,176.92,29.26]
[1752798332444,10.72817481,176.96,176.92,29.26]
[1752798334623,7.27048042,176.98,176.92,29.26]
[1752798334832,11.66827481,176.98,176.92,45.63038656]
[1752798335029,21.95748107,177.0,176.94,10.04817481]
[1752798335226,12.26517481,177.03,176.97,10.04817481]
[1752798335427,10.04817481,177.0,176.95,29.93]
[1752798335630,10.72817481,176.99,176.95,29.26]
[1752798335844,0.68,176.98,176.95,29.26]
[1752798336733,10.04817481,176.99,176.95,29.26]
[1752798336934,10.72817481,176.99,176.95,29.26]
[1752798337442,10.04817481,176.99,176.95,29.93]
[1752798337741,10.04817481,177.0,176.95,29.93]
[1752798337948,10.04817481,176.99,176.95,29.93]
[1752798338114,10.72817481,176.99,176.95,29.26]
[1752798338727,10.04817481,177.0,176.95,35.58128503]
[1752798338927,10.72817481,177.01,176.96,0.67]
[1752798339138,0.68,177.01,176.96,10.71817481]
[1752798339327,10.04817481,177.02,176.96,10.04817481]
[1752798339522,10.04817481,177.02,176.97,0.67]
[1752798339746,10.72817481,177.02,176.97,0.67]
[1752798340243,10.72817481,177.02,176.92,26.0]
[1752798340244,0.68,177.01,176.94,0.67]
[1752798340447,1.537,177.03,176.98,10.04817481]
[1752798340658,0.74,177.04,176.99,10.71817481]
[1752798340861,10.10817481,177.04,176.99,6.31996554]
[1752798341025,15.75664096,177.04,176.99,15.69814035]
[1752798341227,0.68,177.03,176.99,10.04817481]
[1752798341529,15.75664096,177.04,177.02,10.04817481]
[1752798341530,0.06,177.04,177.02,10.04817481]
[1752798341737,0.06,177.04,177.03,40.01817481]
[1752798343450,0.06,177.04,177.03,45.6669349]
[1752798343658,0.06,177.04,177.03,29.3]
[1752798343954,0.06,177.04,177.01,0.67]
[1752798344124,0.06,177.04,177.01,29.3]
[1752798344333,0.06,177.04,177.01,45.66749435]
[1752798344533,0.06,177.04,177.01,40.01817481]
[1752798344956,0.06,177.04,177.01,29.3]
[1752798345250,0.06,177.04,176.99,0.67]
[1752798345251,10.10817481,177.04,176.99,34.94988564]
[1752798345451,0.06,177.04,177.0,0.67]
[1752798345661,0.74,177.04,176.99,44.99806045]
[1752798345834,10.04817481,177.0,176.94,0.67]
[1752798346028,10.04817481,177.0,176.95,29.3]
[1752798346222,10.04817481,176.99,176.95,29.3]
[1752798346426,10.72817481,176.98,176.92,16.37042026]
[1752798346627,10.72817481,176.98,176.93,29.32]
[1752798346852,0.68,176.97,176.92,0.67]
[1752798347149,10.04817481,176.98,176.93,10.71817481]
[1752798347534,10.04817481,176.98,176.93,15.70002847]
[1752798347737,12.02278604,177.01,176.95,10.04817481]
[1752798347738,22.07069017,177.01,176.95,10.04817481]
[1752798347936,10.04817481,177.0,176.94,40.01817481]
[1752798348133,10.04817481,176.96,176.91,29.97]
[1752798348428,10.04817481,176.93,176.88,30.06]
[1752798348950,10.04817481,176.94,176.89,0.67]
[1752798349151,10.04817481,176.96,176.9,10.71817481]
[1752798349352,15.69924833,176.96,176.9,10.71817481]
[1752798349649,15.69924833,176.96,176.88,39.43817481]
[1752798349650,10.04817481,176.94,176.88,39.43817481]
[1752798349852,0.68,176.95,176.88,39.43817481]
[1752798349853,10.04817481,176.93,176.88,35.04343195]
[1752798350040,10.04817481,176.93,176.88,30.06]
[1752798350352,10.72817481,176.93,176.88,29.39]
[1752798351939,10.04817481,176.92,176.88,35.71345737]
[1752798352132,10.04817481,176.94,176.89,0.67]
[1752798352331,10.04817481,176.94,176.9,0.67]
[1752798352542,15.6998153,176.94,176.9,0.67]
[1752798352747,10.04817481,176.93,176.88,30.06]
[1752798353056,10.04817481,176.92,176.88,0.03]
[1752798353350,10.72817481,176.92,176.88,0.03]
[1752798354139,10.04817481,176.92,176.88,0.03]
[1752798354346,10.04817481,176.92,176.88,0.7]
[1752798354544,10.72817481,176.92,176.88,0.03]
[1752798354741,16.38045247,176.92,176.88,0.03]
[1752798355033,10.04817481,176.9,176.88,0.03]
[1752798355336,10.04817481,176.89,176.88,0.03]
[1752798355538,16.38140563,176.89,176.88,0.03]
[1752798356332,10.72817481,176.89,176.88,0.03]
[1752798356533,10.04817481,176.89,176.88,0.03]
[1752798356735,6.0261,176.92,176.88,0.03]
[1752798356933,10.04817481,176.92,176.88,0.7]
[1752798357657,10.04817481,176.92,176.88,6.35354922]
[1752798359153,10.75817481,176.92,176.88,0.03]
[1752798359346,16.41048775,176.92,176.88,0.03]
[1752798359548,10.75817481,176.92,176.88,0.03]
[1752798360340,10.04817481,176.93,176.89,0.66]
[1752798360543,1.6435,176.95,176.88,0.03]
[1752798360544,10.75817481,176.92,176.88,0.03]
[1752798360849,10.04817481,176.92,176.88,0.69]
[1752798361365,10.75817481,176.92,176.88,0.69]
[1752798361573,10.75817481,176.92,176.88,0.03]
[1752798362043,0.71,176.91,176.88,0.03]
[1752798362470,15.70046372,176.92,176.88,0.03]
[1752798362682,16.41046372,176.92,176.88,0.03]
[1752798363854,8.00506547,176.95,176.89,6.31295137]
[1752798364044,12.40167481,176.95,176.89,16.36112618]
[1752798364775,18.05304429,176.95,176.89,16.36112618]
[1752798364949,10.04817481,176.94,176.89,6.31295137]
[1752798365354,10.75817481,176.94,176.89,6.31295137]
[1752798366752,16.40982066,176.94,176.89,6.31295137]
[1752798367864,10.75817481,176.94,176.89,6.31295137]
[1752798370950,6.98229509,176.94,176.89,6.31295137]
[1752798372074,11.92402501,176.94,176.89,5.65295137]
[1752798372262,0.71,176.93,176.89,5.65295137]
[1752798372767,11.92402501,176.94,176.88,0.03]
[1752798372970,6.27229509,176.9,176.88,0.03]
[1752798373484,6.27229509,176.91,176.88,0.03]
[1752798373648,6.27229509,176.9,176.88,0.03]
[1752798373855,6.98229509,176.89,176.88,0.03]
[1752798374059,12.63552591,176.89,176.88,0.03]
[1752798374464,41.97552591,176.89,176.88,0.03]
[1752798375065,62.53350586,176.89,176.88,0.03]
[1752798375591,68.66530586,176.89,176.88,0.03]
[1752798377164,58.61971479,176.89,176.88,0.03]
[1752798377379,68.66530586,176.89,176.88,0.03]
[1752798378285,68.64530586,176.89,176.88,0.03]
[1752798382185,39.32530586,176.89,176.88,0.03]
[1752798382484,68.60530586,176.89,176.88,0.03]
[1752798383468,45.68882189,176.89,176.88,0.03]
[1752798384187,16.40882189,176.89,176.88,0.03]
[1752798385186,10.75559107,176.89,176.88,0.03]
[1752798385395,16.40882189,176.89,176.88,0.03]
[1752798385761,23.14791479,176.89,176.88,0.03]
[1752798385987,33.19350586,176.89,176.88,0.03]
[1752798386389,23.14791479,176.89,176.88,0.03]
[1752798386680,33.19350586,176.89,176.88,0.03]
[1752798389495,43.23909693,176.89,176.88,0.03]
[1752798389670,33.19350586,176.89,176.88,0.03]
[1752798390491,62.45350586,176.89,176.88,0.03]
[1752798392903,39.30559107,176.89,176.88,0.03]
[1752798393868,44.95882189,176.89,176.88,0.03]
[1752798394582,62.46350586,176.89,176.88,0.03]
[1752798396599,33.20350586,176.89,176.88,0.03]
[1752798396899,10.04559107,176.99,176.91,26.0]
[1752798397203,6.26865331,177.02,176.96,6.26865331]
[1752798397495,6.26865331,177.02,176.97,0.68]
[1752798397703,6.26865331,177.02,176.98,0.68]
[1752798399101,10.0266548,177.02,176.98,0.68]
[1752798400306,10.0266548,177.02,176.95,0.68]
[1752798400307,0.72,177.01,176.95,0.68]
[1752798400598,0.06,177.04,176.99,10.0266548]
[1752798400804,0.06,177.04,177.0,0.68]
[1752798401002,0.06,177.04,177.03,10.0266548]
[1752798401335,0.06,177.04,177.03,10.7066548]
[1752798401508,0.06,177.04,177.03,6.32876009]
[1752798401806,0.06,177.04,177.03,16.35541489]
[1752798402489,0.06,177.04,177.01,10.0266548]
[1752798402682,0.06,177.04,177.02,0.68]
[1752798402999,0.06,177.04,176.99,26.0]
[1752798403000,10.0866548,177.04,176.99,31.64974575]
[1752798403178,10.0266548,177.03,176.98,35.61030707]
[1752798403605,0.06,177.04,176.96,26.0]
[1752798403606,10.0266548,177.01,176.96,6.33095808]
[1752798403902,10.0266548,176.99,176.94,0.68]
[1752798404101,10.0266548,176.99,176.95,0.68]
[1752798404578,10.0266548,176.98,176.95,0.68]
[1752798404778,10.0266548,176.98,176.94,5.65163332]
[1752798405002,10.0266548,176.98,176.94,6.33163332]
[1752798405580,10.0266548,176.98,176.94,0.68]
[1752798405798,10.0266548,176.98,176.94,6.3315303]
[1752798406309,10.0266548,176.98,176.94,5.6515303]
[1752798406487,10.0266548,176.98,176.95,0.68]
[1752798407211,10.0266548,176.99,176.96,0.68]
[1752798407588,5.64947512,177.01,176.97,0.68]
[1752798407589,10.0266548,177.0,176.97,0.68]
[1752798407791,6.36916067,177.02,176.95,5.65102062]
[1752798407984,10.0266548,177.0,176.95,6.33102062]
[1752798408182,0.72,177.02,176.96,0.68]
[1752798408487,10.0866548,177.04,176.98,10.0266548]
[1752798408858,10.0866548,177.04,176.99,0.68]
[1752798409119,10.0866548,177.04,177.0,0.68]
[1752798409322,10.0266548,177.03,176.98,0.68]
[1752798409624,10.0266548,177.02,176.97,29.26]
[1752798409784,10.0266548,177.01,176.97,29.26]
[1752798410206,10.7466548,177.02,176.97,29.94]
[1752798410988,10.0266548,177.02,176.98,0.68]
[1752798412415,10.7466548,177.02,176.97,5.65066701]
[1752798412607,10.7466548,177.02,176.97,35.59066701]
[1752798412805,10.7466548,177.02,176.97,6.33066701]
[1752798413011,10.0266548,177.02,176.98,6.33016515]
[1752798413207,10.0266548,177.02,176.99,0.68]
[1752798413706,10.0266548,177.02,176.98,5.65016515]
[1752798413917,10.0266548,177.02,176.97,35.57059653]
[1752798414113,10.0266548,177.02,176.98,0.68]
[1752798414815,10.0266548,177.03,176.98,10.0266548]
[1752798415010,0.06,177.04,177.01,10.0266548]
[1752798415317,0.06,177.04,177.01,39.2666548]
[1752798415507,0.06,177.04,177.02,0.68]
[1752798415909,0.06,177.04,177.03,0.68]
[1752798416518,0.06,177.04,177.02,5.64886188]
[1752798416917,0.06,177.04,177.02,6.32886188]
[1752798417314,0.06,177.04,177.03,0.68]
[1752798418507,0.06,177.04,177.03,6.32876009]
[1752798420820,0.06,177.04,177.03,5.64876009]
[1752798421035,0.06,177.06,177.03,16.34541489]
[1752798421354,0.06,177.06,177.05,36.0266548]
[1752798421501,0.06,177.06,177.05,65.2666548]
[1752798421703,0.06,177.06,177.05,65.9366548]
[1752798422405,0.06,177.12,177.05,65.9366548]
[1752798422605,0.06,177.12,177.1,15.67318218]
[1752798422921,0.06,177.12,177.11,29.24]
[1752798423124,0.06,177.12,177.11,29.91]
[1752798423343,0.71,177.12,177.11,29.24]
[1752798423624,0.06,177.12,177.11,29.91]
[1752798423858,0.06,177.12,177.11,65.9366548]
[1752798424140,0.06,177.13,177.11,39.9366548]
[1752798424298,10.0266548,177.26,177.21,10.0266548]
[1752798424499,0.65,177.26,177.2,29.24]
[1752798424705,0.65,177.26,177.21,10.0266548]
[1752798424939,0.65,177.39,177.28,26.0]
[1752798425108,10.0266548,177.36,177.31,10.0266548]
[1752798425316,10.0266548,177.34,177.29,10.0266548]
[1752798425526,10.0266548,177.34,177.3,29.26]
[1752798425739,10.6766548,177.34,177.3,29.26]
[1752798425906,0.65,177.36,177.32,10.0266548]
[1752798426111,0.65,177.35,177.3,29.26]
[1752798426315,0.65,177.34,177.3,29.26]
[1752798426518,32.1445857,177.38,177.3,29.26]
[1752798426519,10.0266548,177.36,177.31,10.0266548]
[1752798426705,10.0266548,177.36,177.31,10.6966548]
[1752798427015,0.65,177.37,177.31,10.6966548]
[1752798427199,16.31474657,177.37,177.31,0.67]
[1752798427399,16.31474657,177.37,177.26,26.0]
[1752798427400,10.0266548,177.36,177.27,5.6409043]
[1752798427633,10.6766548,177.35,177.29,10.0266548]
[1752798428035,0.65,177.38,177.32,10.0266548]
[1752798428345,10.0266548,177.37,177.32,39.2666548]
[1752798428527,0.65,177.37,177.32,39.9366548]
[1752798428733,10.6766548,177.37,177.32,39.9366548]
[1752798428941,16.3147247,177.37,177.32,39.2666548]
[1752798429132,16.3147247,177.37,177.32,29.24]
[1752798429133,10.0266548,177.36,177.32,29.24]
[1752798429446,10.6766548,177.35,177.29,10.0266548]
[1752798429624,10.0266548,177.36,177.31,29.26]
[1752798429825,10.0266548,177.36,177.31,29.93]
[1752798430027,0.65,177.36,177.31,29.93]
[1752798430237,10.0266548,177.34,177.28,0.67]
[1752798430429,10.0266548,177.34,177.29,39.2866548]
[1752798430635,15.66462906,177.37,177.32,10.0266548]
[1752798431023,10.6766548,177.36,177.3,0.67]
[1752798431364,5.63797426,177.37,177.3,10.6966548]
[1752798431525,10.0266548,177.36,177.31,10.0266548]
[1752798431735,10.6766548,177.36,177.31,10.6966548]
[1752798431940,5.63729635,177.39,177.32,10.6966548]
[1752798432142,10.0266548,177.38,177.33,10.0266548]
[1752798432454,10.0266548,177.38,177.33,39.9366548]
[1752798432622,16.31455434,177.38,177.33,29.91]
[1752798432940,10.0266548,177.37,177.33,29.24]
[1752798433123,10.6766548,177.37,177.33,29.24]
[1752798433324,10.6766548,177.37,177.33,29.91]